fUSD/lending_fUSD_20240122
["ID","MTS","AMOUNT","RATE_DAILY","PERIOD"]
[312466161,1705909846025,-739.68,0.00038356,2]
[312466162,1705909846034,-739.68,0.00038356,2]
[312466163,1705909846043,-500.0,0.00038356,2]
[312466164,1705909846052,-739.68,0.00038356,2]
[312466165,1705909846062,-739.68,0.00038356,2]
[312466166,1705909846071,-739.68,0.00038356,2]
[312466167,1705909846081,-500.0,0.00038356,2]
[312466168,1705909846090,-739.68,0.00038356,2]
[312466169,1705909846099,-500.0,0.00038356,2]
[312466170,1705909846108,-739.68,0.00038356,2]
[312466171,1705909846117,-500.0,0.00038356,2]
[312466172,1705909846126,-739.68,0.00038356,2]
[312466173,1705909846136,-739.68,0.00038356,2]
[312466174,1705909846145,-500.0,0.00038356,2]
[312466175,1705909846155,-739.68,0.00038356,2]
[312466176,1705909846164,-688.84,0.00038356,2]
[312466177,1705909846173,-739.68,0.00038356,2]
[312466178,1705909846182,-500.0,0.00038356,2]
[312466179,1705909846191,-500.0,0.00038356,2]
[312466180,1705909846203,-500.0,0.00038356,2]
[312466181,1705909846213,-739.68,0.00038356,2]
[312466182,1705909846223,-500.0,0.00038356,2]
[312466183,1705909846232,-889.02,0.00038356,2]
[312466184,1705909846241,-500.0,0.00038356,2]
[312466185,1705909846250,-500.0,0.00038356,2]
[312466186,1705909846259,-500.0,0.00038356,2]
[312466187,1705909846267,-500.0,0.00038356,2]
[312466188,1705909846276,-500.0,0.00038356,2]
[312466189,1705909846286,-1223.8,0.00038356,2]
[312466190,1705909846295,-500.0,0.00038356,2]
[312466191,1705909846303,-519.79,0.00038356,2]
[312466192,1705909846313,-500.0,0.00038356,2]
[312466193,1705909846322,-1398.2,0.00038356,2]
[312466194,1705909846330,-983.51,0.00038356,2]
[312466195,1705909846340,-500.0,0.00038356,2]
[312466196,1705909846349,-500.0,0.00038356,2]
[312466197,1705909846358,-500.0,0.00038356,2]
[312466198,1705909846367,-503.33607945,0.00038356,2]
[312466199,1705909846376,-500.0,0.00038356,2]
[312466200,1705909846385,-500.0,0.00038356,2]
[312466201,1705909846394,-500.0,0.00038356,2]
[312466202,1705909846403,-500.0,0.00038356,2]
[312466203,1705909846413,-500.0,0.00038356,2]
[312466204,1705909846422,-500.0,0.00038356,2]
[312466205,1705909846431,-1140.25,0.00038356,2]
[312466206,1705909846440,-500.0,0.00038356,2]
[312466207,1705909846450,-849.3,0.00038356,2]
[312466208,1705909846459,-1096.6,0.00038356,2]
[312466209,1705909846468,-500.0,0.00038356,2]
[312466210,1705909846476,-500.0,0.00038356,2]
[312466211,1705909846485,-500.0,0.00038356,2]
[312466212,1705909846494,-930.04,0.00038356,2]
[312466213,1705909846503,-500.0,0.00038356,2]
[312466214,1705909846515,-500.0,0.00038356,2]
[312466215,1705909846523,-557.86318919,0.00038356,2]
[312466216,1705909846533,-500.0,0.00038356,2]
[312466217,1705909846542,-500.4,0.00038356,2]
[312466218,1705909846552,-513.36763946,0.00038356,2]
[312466219,1705909846561,-500.0,0.00038356,2]
[312466220,1705909846570,-942.5,0.00038356,2]
[312466221,1705909846579,-1051.92,0.00038356,2]
[312466222,1705909846589,-1459.45,0.00038356,2]
[312466223,1705909846598,-531.92727362,0.00038356,2]
[312466224,1705909846607,-1261.69,0.00038356,2]
[312466225,1705909846616,-500.0,0.00038356,2]
[312466226,1705909846625,-928.67,0.00038356,2]
[312466227,1705909846635,-867.23,0.00038356,2]
[312466228,1705909846644,-500.0,0.00038356,2]
[312466229,1705909846654,-500.0,0.00038356,2]
[312466230,1705909846663,-500.0,0.00038356,2]
[312466231,1705909846672,-743.49,0.00038356,2]
[312466232,1705909846681,-502.27,0.00038356,2]
[312466233,1705909846690,-1052.49,0.00038356,2]
[312466234,1705909846699,-500.0,0.00038356,2]
[312466235,1705909846708,-1629.26,0.00038356,2]
[312466236,1705909846717,-500.0,0.00038356,2]
[312466237,1705909846726,-500.0,0.00038356,2]
[312466238,1705909846735,-500.0,0.00038356,2]
[312466239,1705909846744,-500.0,0.00038356,2]
[312466240,1705909846753,-1151.12,0.00038356,2]
[312466241,1705909846762,-500.0,0.00038356,2]
[312466242,1705909846771,-741.87,0.00038356,2]
[312466243,1705909846779,-500.0,0.00038356,2]
[312466244,1705909846788,-502.75018398,0.00038356,2]
[312466245,1705909846798,-1259.28,0.00038356,2]
[312466246,1705909846806,-500.0,0.00038356,2]
[312466247,1705909846816,-500.0,0.00038356,2]
[312466248,1705909846825,-1343.05,0.00038356,2]
[312466249,1705909846833,-500.0,0.00038356,2]
[312466250,1705909846842,-500.0,0.00038356,2]
[312466251,1705909846851,-500.0,0.00038356,2]
[312466252,1705909846861,-500.0,0.00038356,2]
[312466253,1705909846870,-506.29033157,0.00038356,2]
[312466254,1705909846879,-500.0,0.00038356,2]
[312466255,1705909846889,-500.0,0.00038356,2]
[312466256,1705909846898,-763.51,0.00038356,2]
[312466257,1705909846907,-500.0,0.00038356,2]
[312466258,1705909846917,-849.96,0.00038356,2]
[312466259,1705909846926,-500.0,0.00038356,2]
[312466260,1705909846935,-500.0,0.00038356,2]
[312466261,1705909846945,-500.0,0.00038356,2]
[312466262,1705909846954,-500.0,0.00038356,2]
[312466263,1705909846964,-500.0,0.00038356,2]
[312466264,1705909846973,-362.48497787,0.00038356,2]
[312466265,1705909846983,-500.0,0.00038356,2]
[312466266,1705909846992,-500.0,0.00038356,2]
[312466267,1705909847002,-711.97,0.00038356,2]
[312466268,1705909847011,-500.0,0.00038356,2]
[312466269,1705909847021,-500.0,0.00038356,2]
[312466270,1705909847030,-515.23264829,0.00038356,2]
[312466272,1705909847040,-500.0,0.00038356,2]
[312466273,1705909847088,-580.47,0.00038356,2]
[312466274,1705909847097,-650.66,0.00038356,2]
[312466275,1705909847106,-591.07,0.00038356,2]
[312466276,1705909847115,-500.0,0.00038356,2]
[312466277,1705909847126,-841.34,0.00038356,2]
[312466278,1705909847135,-522.6,0.00038356,2]
[312466279,1705909847144,-510.18585655,0.00038356,2]
[312466280,1705909847153,-500.0,0.00038356,2]
[312466281,1705909847162,-571.99,0.00038356,2]
[312466282,1705909847171,-865.96,0.00038356,2]
[312466283,1705909847180,-513.36483767,0.00038356,2]
[312466284,1705909847204,-1404.2,0.00038356,2]
[312466285,1705909847220,-500.0,0.00038356,2]
[312466286,1705909847240,-1022.51,0.00038356,2]
[312466287,1705909847259,-505.11432172,0.00038356,2]
[312466288,1705909847275,-500.0,0.00038356,2]
[312466289,1705909847292,-500.0,0.00038356,2]
[312466290,1705909847312,-1243.56,0.00038356,2]
[312466291,1705909847327,-500.0,0.00038356,2]
[312466292,1705909847346,-500.0,0.00038356,2]
[312466293,1705909847363,-500.0,0.00038356,2]
[312466294,1705909847381,-500.00000001,0.00038356,2]
[312466295,1705909847401,-500.0,0.00038356,2]
[312466296,1705909847413,-203.93195776,0.00038356,2]
[312466297,1705909847428,-500.0,0.00038356,2]
[312466298,1705909847444,-500.0,0.00038356,2]
[312466299,1705909847458,-694.11,0.00038356,2]
[312466300,1705909847472,-500.0,0.00038356,2]
[312466301,1705909847486,-500.0,0.00038356,2]
[312466302,1705909847501,-500.0,0.00038356,2]
[312466303,1705909847517,-601.84,0.00038356,2]
[312466304,1705909847532,-500.0,0.00038356,2]
[312466305,1705909847547,-500.0,0.00038356,7]
[312466306,1705909847563,-500.0,0.00038356,2]
[312466307,1705909847578,-870.37,0.00038356,2]
[312466308,1705909847594,-524.02,0.00038356,2]
[312466309,1705909847609,-500.0,0.00038356,2]
[312466310,1705909847624,-500.0,0.00038356,2]
[312466311,1705909847646,-500.0,0.00038356,2]
[312466312,1705909847661,-500.0,0.00038356,2]
[312466313,1705909847675,-500.0,0.00038356,2]
[312466314,1705909847690,-1622.62,0.00038356,2]
[312466315,1705909847704,-500.0,0.00038356,2]
[312466316,1705909847718,-1458.35,0.00038356,2]
[312466317,1705909847732,-500.0,0.00038356,2]
[312466318,1705909847747,-500.0,0.00038356,2]
[312466319,1705909847762,-500.0,0.00038356,2]
[312466320,1705909847777,-1254.73,0.00038356,2]
[312466321,1705909847791,-500.0,0.00038356,2]
[312466322,1705909847805,-500.0,0.00038356,2]
[312466323,1705909847819,-500.0,0.00038356,2]
[312466324,1705909847833,-1146.83,0.00038356,2]
[312466325,1705909847847,-500.0,0.00038356,2]
[312466326,1705909847862,-1502.04,0.00038356,2]
[312466327,1705909847877,-500.0,0.00038356,2]
[312466328,1705909847891,-500.0,0.00038356,2]
[312466329,1705909847905,-500.0,0.00038356,2]
[312466330,1705909847919,-500.0,0.00038356,2]
[312466331,1705909847933,-500.0,0.00038356,2]
[312466332,1705909847947,-500.0,0.00038356,2]
[312466333,1705909847962,-989.43,0.00038356,2]
[312466334,1705909847976,-729.63,0.00038356,2]
[312466335,1705909847992,-809.92,0.00038356,2]
[312466336,1705909848006,-500.0,0.00038356,2]
[312466337,1705909848020,-570.51,0.00038356,2]
[312466338,1705909848035,-500.0,0.00038356,2]
[312466339,1705909848049,-500.0,0.00038356,2]
[312466340,1705909848064,-519.23,0.00038356,2]
[312466341,1705909848079,-500.0,0.00038356,2]
[312466342,1705909848093,-1368.69,0.00038356,2]
[312466343,1705909848107,-500.0,0.00038356,2]
[312466344,1705909848122,-500.0,0.00038356,2]
[312466345,1705909848135,-1288.44,0.00038356,2]
[312466346,1705909848150,-309.88667185,0.00038356,2]
[312466347,1705909848164,-877.4,0.00038356,2]
[312466348,1705909848179,-500.0,0.00038356,2]
[312466349,1705909848193,-573.41,0.00038356,2]
[312466350,1705909848209,-500.0,0.00038356,2]
[312466351,1705909848223,-500.0,0.00038356,2]
[312466352,1705909848237,-500.0,0.00038356,2]
[312466353,1705909848251,-1539.01,0.00038356,2]
[312466354,1705909848266,-500.0,0.00038356,2]
[312466355,1705909848280,-530.69761233,0.00038356,2]
[312466356,1705909848305,-500.0,0.00038356,2]
[312466357,1705909848326,-636.66324914,0.00038356,2]
[312466358,1705909848346,-500.0,0.00038356,2]
[312466359,1705909848363,-421.62051159,0.00038356,2]
[312466360,1705909848381,-500.0,0.00038356,2]
[312466361,1705909848399,-500.0,0.00038356,2]
[312466362,1705909848416,-500.0,0.00038356,2]
[312466363,1705909848432,-529.44,0.00038356,2]
[312466364,1705909848448,-3228.77,0.00038356,2]
[312466365,1705909848464,-1408.64,0.00038356,2]
[312466366,1705909848480,-1430.59,0.00038356,2]
[312466367,1705909848496,-3228.77,0.00038356,2]
[312466368,1705909848514,-3228.77,0.00038356,2]
[312466369,1705909848529,-767.46,0.00038356,2]
[312466370,1705909848544,-3228.77,0.00038356,2]
[312466371,1705909848560,-521.49,0.00038356,2]
[312466372,1705909848576,-3228.77,0.00038356,2]
[312466373,1705909848591,-500.0,0.00038356,2]
[312466374,1705909848607,-3228.77,0.00038356,2]
[312466375,1705909848622,-3228.77,0.00038356,2]
[312466376,1705909848637,-3228.77,0.00038356,2]
[312466377,1705909848651,-3228.77,0.00038356,2]
[312466378,1705909848666,-3228.77,0.00038356,2]
[312466379,1705909848681,-500.0,0.00038356,2]
[312466380,1705909848695,-253.77022976,0.00038356,2]
[312466381,1705909848710,-500.0,0.00038356,2]
[312466382,1705909848725,-500.0,0.00038356,2]
[312466383,1705909848740,-500.0,0.00038356,2]
[312466384,1705909848754,-511.43203417,0.00038356,2]
[312466385,1705909848770,-500.0,0.00038356,2]
[312466386,1705909848784,-500.0,0.00038356,2]
[312466387,1705909848798,-851.82,0.00038356,2]
[312466388,1705909848813,-500.0,0.00038356,2]
[312466389,1705909848828,-540.76,0.00038356,2]
[312466390,1705909848843,-500.0,0.00038356,2]
[312466391,1705909848859,-205.64642892,0.00038356,2]
[312466392,1705909848874,-970.84,0.00038356,2]
[312466393,1705909848884,-720.93,0.00038356,2]
[312466394,1705909848894,-500.0,0.00038356,2]
[312466395,1705909848903,-503.24215916,0.00038356,2]
[312466396,1705909848912,-1444.57,0.00038356,2]
[312466397,1705909848921,-500.0,0.00038356,2]
[312466398,1705909848931,-500.0,0.00038356,2]
[312466399,1705909848941,-500.0,0.00038356,2]
[312466400,1705909848950,-500.0,0.00038356,2]
[312466401,1705909848960,-500.0,0.00038356,2]
[312466402,1705909848969,-500.0,0.00038356,2]
[312466403,1705909848979,-500.0,0.00038356,2]
[312466404,1705909848988,-500.0,0.00038356,2]
[312466405,1705909848997,-500.0,0.00038356,2]
[312466406,1705909849007,-500.0,0.00038356,2]
[312466407,1705909849017,-500.0,0.00038356,2]
[312466408,1705909849409,-618.71,0.00038356,2]
[312466409,1705909849447,-500.0,0.00038356,2]
[312466410,1705909849470,-500.0,0.00038356,2]
[312466411,1705909849480,-500.0,0.00038356,2]
[312466412,1705909849489,-500.0,0.00038356,2]
[312466413,1705909849500,-500.0,0.00038356,2]
[312466414,1705909849513,-513.00546266,0.00038356,2]
[312466415,1705909849522,-530.78840457,0.00038356,2]
[312466416,1705909849530,-500.0,0.00038356,2]
[312466417,1705909849539,-500.0,0.00038356,2]
[312466418,1705909849550,-500.0,0.00038356,2]
[312466419,1705909849559,-988.63,0.00038356,2]
[312466420,1705909849569,-555.94,0.00038356,2]
[312466421,1705909849578,-500.0,0.00038356,2]
[312466422,1705909849589,-500.0,0.00038356,2]
[312466423,1705909849598,-500.0,0.00038356,2]
[312466424,1705909849607,-793.05,0.00038356,2]
[312466425,1705909849617,-500.0,0.00038356,2]
[312466426,1705909849625,-1103.32,0.00038356,2]
[312466427,1705909849635,-500.0,0.00038356,2]
[312466428,1705909849643,-500.0,0.00038356,2]
[312466429,1705909849652,-1434.53,0.00038356,2]
[312466430,1705909849662,-500.0,0.00038356,2]
[312466431,1705909849670,-500.0,0.00038356,2]
[312466432,1705909849679,-500.0,0.00038356,2]
[312466433,1705909849688,-500.0,0.00038356,2]
[312466434,1705909849697,-500.0,0.00038356,2]
[312466435,1705909849706,-735.21,0.00038356,2]
[312466436,1705909849715,-1301.7,0.00038356,2]
[312466437,1705909849724,-200.0,0.00038356,2]
[312466438,1705909849732,-500.0,0.00038356,2]
[312466439,1705909849741,-500.0,0.00038356,2]
[312466440,1705909849750,-500.0,0.00038356,2]
[312466441,1705909849760,-500.0,0.00038356,2]
[312466442,1705909849769,-500.0,0.00038356,2]
[312466443,1705909849779,-500.0,0.00038356,2]
[312466444,1705909849787,-191.69948298,0.00038356,2]
[312466445,1705909849797,-500.0,0.00038356,2]
[312466446,1705909849806,-500.0,0.00038356,2]
[312466447,1705909849815,-543.35,0.00038356,2]
[312466448,1705909849824,-1019.55,0.00038356,2]
[312466449,1705909849833,-812.46,0.00038356,2]
[312466450,1705909849842,-500.0,0.00038356,2]
[312466451,1705909849851,-500.0,0.00038356,2]
[312466452,1705909849860,-512.01,0.00038356,2]
[312466453,1705909849869,-500.0,0.00038356,2]
[312466454,1705909849878,-500.0,0.00038356,2]
[312466455,1705909849887,-500.0,0.00038356,2]
[312466456,1705909849896,-500.0,0.00038356,2]
[312466457,1705909849905,-500.0,0.00038356,2]
[312466458,1705909849914,-500.0,0.00038356,2]
[312466459,1705909849923,-1969.35,0.00038356,2]
[312466460,1705909849932,-500.0,0.00038356,2]
[312466461,1705909849941,-500.0,0.00038356,2]
[312466462,1705909849952,-500.0,0.00038356,2]
[312466463,1705909849961,-500.0,0.00038356,2]
[312466464,1705909849970,-500.0,0.00038356,2]
[312466465,1705909849979,-500.0,0.00038356,2]
[312466466,1705909849988,-1195.23,0.00038356,2]
[312466467,1705909849998,-500.0,0.00038356,2]
[312466468,1705909850007,-513.18596348,0.00038356,2]
[312466469,1705909850018,-500.0,0.00038356,2]
[312466470,1705909850028,-878.59,0.00038356,2]
[312466471,1705909850038,-250.0,0.00038356,2]
[312466472,1705909850049,-1063.69,0.00038356,2]
[312466473,1705909850059,-500.0,0.00038356,2]
[312466474,1705909850069,-500.0,0.00038356,2]
[312466475,1705909850079,-500.0,0.00038356,2]
[312466476,1705909850088,-500.0,0.00038356,2]
[312466477,1705909850097,-500.0,0.00038356,2]
[312466478,1705909850106,-1529.76,0.00038356,2]
[312466479,1705909850116,-500.0,0.00038356,2]
[312466480,1705909850127,-500.0,0.00038356,2]
[312466481,1705909850137,-500.0,0.00038356,2]
[312466482,1705909850147,-500.0,0.00038356,2]
[312466483,1705909850157,-500.0,0.00038356,2]
[312466484,1705909850167,-500.0,0.00038356,2]
[312466485,1705909850177,-500.0,0.00038356,2]
[312466486,1705909850187,-1166.99,0.00038356,2]
[312466487,1705909850199,-500.0,0.00038356,2]
[312466488,1705909850209,-500.0,0.00038356,2]
[312466489,1705909850218,-500.0,0.00038356,2]
[312466490,1705909850227,-500.0,0.00038356,2]
[312466491,1705909850237,-500.0,0.00038356,2]
[312466492,1705909850246,-1673.2,0.00038356,2]
[312466493,1705909850255,-1375.6,0.00038356,2]
[312466494,1705909850265,-500.0,0.00038356,2]
[312466495,1705909850274,-188.30631751,0.00038356,2]
[312466496,1705909850284,-500.0,0.00038356,2]
[312466497,1705909850293,-500.0,0.00038356,2]
[312466498,1705909850303,-500.0,0.00038356,2]
[312466499,1705909850312,-500.0,0.00038356,2]
[312466500,1705909850322,-786.03,0.00038356,2]
[312466501,1705909850332,-500.0,0.00038356,2]
[312466502,1705909850342,-500.0,0.00038356,2]
[312466503,1705909850351,-500.0,0.00038356,2]
[312466504,1705909850361,-500.0,0.00038356,2]
[312466505,1705909850370,-500.0,0.00038356,2]
[312466506,1705909850379,-500.0,0.00038356,2]
[312466507,1705909850389,-500.0,0.00038356,2]
[312466508,1705909850398,-500.0,0.00038356,2]
[312466509,1705909850407,-655.96,0.00038356,2]
[312466510,1705909850417,-500.0,0.00038356,2]
[312466511,1705909850426,-500.0,0.00038356,2]
[312466512,1705909850435,-500.0,0.00038356,2]
[312466513,1705909850444,-500.0,0.00038356,2]
[312466514,1705909850456,-1045.54,0.00038356,2]
[312466515,1705909850466,-747.38,0.00038356,2]
[312466516,1705909850475,-500.0,0.00038356,2]
[312466517,1705909850484,-500.0,0.00038356,2]
[312466518,1705909850493,-532.61,0.00038356,2]
[312466519,1705909850503,-500.0,0.00038356,2]
[312466520,1705909850516,-500.0,0.00038356,2]
[312466521,1705909850526,-500.0,0.00038356,2]
[312466522,1705909850535,-500.0,0.00038356,2]
[312466523,1705909850546,-1198.09,0.00038356,2]
[312466524,1705909850555,-1290.87,0.00038356,2]
[312466525,1705909850565,-500.0,0.00038356,2]
[312466526,1705909850575,-500.0,0.00038356,2]
[312466527,1705909850584,-500.0,0.00038356,2]
[312466528,1705909850597,-500.0,0.00038356,2]
[312466529,1705909850608,-1356.28,0.00038356,2]
[312466530,1705909850618,-500.0,0.00038356,2]
[312466531,1705909850628,-500.0,0.00038356,2]
[312466532,1705909850637,-500.0,0.00038356,2]
[312466533,1705909850647,-500.0,0.00038356,2]
[312466534,1705909850657,-500.0,0.00038356,2]
[312466535,1705909850666,-500.0,0.00038356,2]
[312466536,1705909850676,-500.0,0.00038356,2]
[312466537,1705909850686,-500.0,0.00038356,2]
[312466538,1705909850696,-500.0,0.00038356,2]
[312466539,1705909850706,-1117.63,0.00038356,2]
[312466540,1705909850715,-1245.51,0.00038356,2]
[312466541,1705909850725,-500.0,0.00038356,2]
[312466542,1705909850735,-958.46,0.00038356,2]
[312466543,1705909850744,-514.92594698,0.00038356,2]
[312466544,1705909850754,-500.0,0.00038356,2]
[312466545,1705909850763,-500.0,0.00038356,2]
[312466546,1705909850773,-500.0,0.00038356,2]
[312466547,1705909850783,-888.98,0.00038356,2]
[312466548,1705909850792,-500.0,0.00038356,2]
[312466549,1705909850801,-500.0,0.00038356,2]
[312466550,1705909850811,-1210.92,0.00038356,2]
[312466551,1705909850820,-500.0,0.00038356,2]
[312466552,1705909850830,-500.0,0.00038356,2]
[312466553,1705909850840,-578.3,0.00038356,2]
[312466554,1705909850849,-500.0,0.00038356,2]
[312466555,1705909850858,-814.24,0.00038356,2]
[312466556,1705909850867,-500.0,0.00038356,2]
[312466557,1705909850876,-500.0,0.00038356,2]
[312466558,1705909850886,-615.86,0.00038356,2]
[312466559,1705909850896,-500.0,0.00038356,2]
[312466560,1705909850905,-500.0,0.00038356,2]
[312466561,1705909850915,-775.15,0.00038356,2]
[312466562,1705909850925,-500.0,0.00038356,2]
[312466563,1705909850935,-911.45,0.00038356,2]
[312466564,1705909850945,-507.38801151,0.00038356,2]
[312466565,1705909850955,-500.0,0.00038356,2]
[312466566,1705909850965,-500.0,0.00038356,2]
[312466567,1705909850974,-500.0,0.00038356,2]
[312466568,1705909850984,-541.56511178,0.00038356,2]
[312466569,1705909850994,-1250.88,0.00038356,2]
[312466570,1705909851003,-327.10934962,0.00038356,2]
[312466571,1705909851012,-500.0,0.00038356,2]
[312466572,1705909851021,-1040.12,0.00038356,2]
[312466573,1705909851031,-669.4,0.00038356,2]
[312466574,1705909851040,-788.8,0.00038356,2]
[312466575,1705909851049,-500.0,0.00038356,2]
[312466576,1705909851058,-500.0,0.00038356,2]
[312466577,1705909851068,-500.0,0.00038356,2]
[312466578,1705909851077,-1639.08,0.00038356,2]
[312466579,1705909851086,-159.76485359,0.00038356,2]
[312466580,1705909851096,-720.47,0.00038356,2]
[312466581,1705909851105,-500.0,0.00038356,2]
[312466582,1705909851114,-500.0,0.00038356,2]
[312466583,1705909851123,-819.74,0.00038356,2]
[312466584,1705909851133,-1250.13,0.00038356,2]
[312466585,1705909851143,-500.0,0.00038356,2]
[312466586,1705909851152,-1066.16,0.00038356,2]
[312466587,1705909851161,-500.0,0.00038356,2]
[312466588,1705909851171,-994.2,0.00038356,2]
[312466589,1705909851180,-500.0,0.00038356,2]
[312466590,1705909851190,-847.33,0.00038356,2]
[312466591,1705909851200,-1463.68,0.00038356,2]
[312466592,1705909851210,-500.0,0.00038356,2]
[312466593,1705909851220,-716.96,0.00038356,2]
[312466594,1705909851229,-500.0,0.00038356,2]
[312466595,1705909851239,-500.0,0.00038356,2]
[312466596,1705909851248,-500.0,0.00038356,2]
[312466597,1705909851258,-357.59651254,0.00038356,2]
[312466598,1705909851267,-500.0,0.00038356,2]
[312466599,1705909851276,-500.0,0.00038356,2]
[312466600,1705909851286,-1726.85,0.00038356,2]
[312466601,1705909851295,-1008.81,0.00038356,2]
[312466602,1705909851304,-500.0,0.00038356,2]
[312466603,1705909851313,-500.0,0.00038356,2]
[312466604,1705909851322,-500.0,0.00038356,2]
[312466605,1705909851331,-500.0,0.00038356,2]
[312466606,1705909851340,-404.72,0.00038356,2]
[312466607,1705909851350,-500.0,0.00038356,2]
[312466608,1705909851359,-500.0,0.00038356,2]
[312466609,1705909851369,-500.0,0.00038356,2]
[312466610,1705909851378,-500.0,0.00038356,2]
[312466611,1705909851387,-500.0,0.00038356,2]
[312466612,1705909851396,-500.0,0.00038356,2]
[312466613,1705909851405,-500.0,0.00038356,2]
[312466614,1705909851415,-1751.31,0.00038356,2]
[312466615,1705909851424,-500.0,0.00038356,2]
[312466616,1705909851433,-841.26,0.00038356,2]
[312466617,1705909851443,-506.99761451,0.00038356,2]
[312466618,1705909851453,-500.0,0.00038356,2]
[312466619,1705909851462,-1159.55,0.00038356,2]
[312466620,1705909851472,-500.0,0.00038356,2]
[312466621,1705909851481,-500.0,0.00038356,2]
[312466622,1705909851491,-6629.49,0.00038356,2]
[312466623,1705909851501,-500.0,0.00038356,2]
[312466624,1705909851513,-500.0,0.00038356,2]
[312466625,1705909851522,-1127.28,0.00038356,2]
[312466626,1705909851531,-1739.65,0.00038356,2]
[312466627,1705909851540,-500.0,0.00038356,2]
[312466628,1705909851549,-1000.0,0.00038356,7]
[312466629,1705909851559,-500.0,0.00038356,2]
[312466630,1705909851568,-500.0,0.00038356,2]
[312466631,1705909851577,-812.44,0.00038356,2]
[312466632,1705909851588,-500.0,0.00038356,2]
[312466633,1705909851597,-500.0,0.00038356,2]
[312466634,1705909851607,-646.74,0.00038356,2]
[312466635,1705909851616,-815.76,0.00038356,2]
[312466636,1705909851625,-500.0,0.00038356,2]
[312466637,1705909851634,-1305.93,0.00038356,2]
[312466638,1705909851643,-3601.14,0.00038356,2]
[312466639,1705909851652,-500.0,0.00038356,2]
[312466640,1705909851662,-500.0,0.00038356,2]
[312466641,1705909851671,-693.73,0.00038356,2]
[312466642,1705909851680,-500.0,0.00038356,2]
[312466643,1705909851689,-1255.43,0.00038356,5]
[312466644,1705909851698,-1406.15,0.00038356,2]
[312466645,1705909851708,-500.0,0.00038356,2]
[312466646,1705909851717,-1514.95,0.00038356,2]
[312466647,1705909851726,-500.0,0.00038356,2]
[312466648,1705909851735,-500.0,0.00038356,2]
[312466649,1705909851744,-500.0,0.00038356,2]
[312466650,1705909851754,-500.0,0.00038356,2]
[312466651,1705909851763,-500.0,0.00038356,2]
[312466652,1705909851772,-500.0,0.00038356,2]
[312466653,1705909851782,-633.0934493,0.00038356,2]
[312466654,1705909851791,-500.0,0.00038356,2]
[312466655,1705909851801,-500.0,0.00038356,2]
[312466656,1705909851810,-687.56,0.00038356,2]
[312466657,1705909851819,-500.0,0.00038356,2]
[312466658,1705909851828,-503.69626744,0.00038356,2]
[312466659,1705909851837,-778.87,0.00038356,2]
[312466660,1705909851847,-500.0,0.00038356,2]
[312466661,1705909851856,-500.0,0.00038356,2]